bitfinex-derivatives/quotes_BTCF0:USTF0_20250713
["timestamp","ask_amount","ask_price","bid_price","bid_amount"]
[1752425292861,0.12157142,118890.0,118880.0,0.65393032]
[1752425293164,0.01730142,118890.0,118880.0,1.300135]
[1752425293361,2e-08,118890.0,118880.0,1.468367]
[1752425293665,0.07654046,118900.0,118890.0,0.2718573]
[1752425293869,0.01609333,118900.0,118890.0,2.10281114]
[1752425294864,0.01609333,118900.0,118890.0,2.10481114]
[1752425295767,0.01609333,118900.0,118890.0,2.10681114]
[1752425296468,0.01609333,118900.0,118890.0,2.12462]
[1752425296675,0.11776333,118900.0,118890.0,2.12462]
[1752425297362,0.11776333,118900.0,118890.0,2.41892]
[1752425298165,0.08483333,118900.0,118890.0,2.41892]
[1752425299466,0.06124333,118900.0,118890.0,2.41892]
[1752425302268,0.08483333,118900.0,118890.0,2.41892]
[1752425305569,0.10169594,118900.0,118890.0,2.41892]
[1752425308365,0.07810594,118900.0,118890.0,2.41892]
[1752425309969,0.13406594,118900.0,118890.0,2.41892]
[1752425310165,0.41947062,118900.0,118890.0,0.96671532]
[1752425310367,0.58760382,118900.0,118890.0,1.47566532]
[1752425310568,0.58760382,118900.0,118890.0,1.54533532]
[1752425310867,0.30219914,118900.0,118890.0,1.54533532]
[1752425311069,0.30219914,118900.0,118890.0,1.83074]
[1752425311669,0.13406594,118900.0,118890.0,1.46994]
[1752425311970,0.13406594,118900.0,118890.0,1.83074]
[1752425312366,0.13406594,118900.0,118890.0,1.46994]
[1752425313471,0.13406594,118900.0,118890.0,1.83074]
[1752425314470,0.13406594,118900.0,118890.0,1.46994]
[1752425315070,0.13406594,118900.0,118890.0,1.17564]
[1752425315965,0.03295594,118900.0,118890.0,1.17564]
[1752425316168,0.03295594,118900.0,118890.0,1.53644]
[1752425318372,0.01609333,118900.0,118890.0,1.53644]
[1752425318673,0.03296716,118900.0,118890.0,1.53644]
[1752425320974,0.03296716,118900.0,118890.0,1.83074]
[1752425321671,0.03296716,118900.0,118890.0,2.19154]
[1752425323574,0.03296716,118900.0,118890.0,1.46994]
[1752425323873,0.03296716,118900.0,118890.0,2.19154]
[1752425329975,0.05677716,118900.0,118890.0,2.19154]
[1752425330181,0.10657716,118900.0,118890.0,2.19154]
[1752425331478,0.13872716,118900.0,118890.0,1.83074]
[1752425335083,0.10657716,118900.0,118890.0,1.83074]
[1752425335283,0.08276716,118900.0,118890.0,1.83074]
[1752425336285,0.10753716,118900.0,118890.0,1.83074]
[1752425338186,0.14050716,118900.0,118890.0,1.83074]
[1752425339494,0.30864026,118900.0,118890.0,1.83074]
[1752425339693,0.30864026,118900.0,118890.0,1.18453532]
[1752425339894,0.59404494,118900.0,118890.0,1.13921532]
[1752425340096,0.59404494,118900.0,118890.0,0.53310532]
[1752425340394,0.59404494,118900.0,118890.0,0.51529646]
[1752425340597,0.29254693,118900.0,118890.0,0.53891646]
[1752425340799,0.29254693,118900.0,118890.0,1.23443114]
[1752425342090,0.29254693,118900.0,118890.0,0.87363114]
[1752425342296,0.29254703,118900.0,118890.0,1.23443114]
[1752425342989,0.29254703,118900.0,118890.0,1.16295808]
[1752425343196,0.12441383,118900.0,118890.0,1.16295808]
[1752425343596,0.01687383,118900.0,118890.0,1.3946992]
[1752425343798,0.35022058,118910.0,118900.0,0.2731032]
[1752425343999,0.36716423,118910.0,118900.0,2.23260644]
[1752425344603,0.36716423,118910.0,118900.0,1.8047432]
[1752425344800,0.36716423,118910.0,118900.0,1.06276644]
[1752425345204,0.36716423,118910.0,118900.0,0.84883482]
[1752425345398,0.58109585,118910.0,118900.0,0.2741032]
[1752425345702,0.58109585,118910.0,118900.0,0.48803482]
[1752425346506,0.58109585,118910.0,118900.0,0.48903482]
[1752425349210,0.58109585,118910.0,118900.0,0.43972482]
[1752425349392,0.58109585,118910.0,118900.0,0.2021732]
[1752425349599,1.16641585,118910.0,118900.0,0.1701332]
[1752425350809,1.52721585,118910.0,118900.0,0.1701332]
[1752425353107,1.16641585,118910.0,118900.0,0.1701332]
[1752425353309,1.52721585,118910.0,118900.0,0.1701332]
[1752425353714,1.74114747,118910.0,118900.0,0.1701332]
[1752425356312,1.74114747,118910.0,118900.0,0.002]
[1752425356813,1.74114747,118910.0,118900.0,0.1701332]
[1752425357413,1.74114747,118910.0,118900.0,0.002]
[1752425360209,0.1681332,118900.0,118890.0,0.00024]
[1752425360412,1.29318171,118900.0,118890.0,4e-05]
[1752425360611,1.32925009,118900.0,118890.0,4e-05]
[1752425361612,1.32925009,118900.0,118890.0,0.00404]
[1752425362215,1.32925009,118900.0,118890.0,0.1721873]
[1752425362615,1.07925009,118900.0,118890.0,0.1721873]
[1752425362917,0.87566685,118900.0,118890.0,0.56189955]
[1752425363219,0.87566685,118900.0,118890.0,0.2766273]
[1752425363521,0.93611398,118900.0,118890.0,0.2766273]
[1752425364520,0.87566685,118900.0,118890.0,0.2766273]
[1752425364723,1.5217391,118900.0,118890.0,0.1721873]
[1752425368121,1.58218623,118900.0,118890.0,0.1721873]
[1752425369415,1.5217391,118900.0,118890.0,0.1721873]
[1752425369617,1.1609391,118900.0,118890.0,0.1721873]
[1752425369819,1.5217391,118900.0,118890.0,0.1721873]
[1752425370120,1.58218623,118900.0,118890.0,0.1721873]
[1752425370317,1.75040223,118900.0,118890.0,0.00404]
[1752425370724,1.58218623,118900.0,118890.0,0.00404]
[1752425370915,0.1997056,118870.0,118860.0,0.01762209]
[1752425371114,1.5223215,118870.0,118860.0,0.01762209]
[1752425371423,0.2737339,118850.0,118840.0,0.00361816]
[1752425371723,1.77584914,118850.0,118840.0,0.00361816]
[1752425372521,2.13664914,118850.0,118840.0,0.00361816]
[1752425373130,2.13764914,118850.0,118840.0,0.00361816]
[1752425374116,2.13820914,118850.0,118840.0,0.00361816]
[1752425374425,1.55116914,118850.0,118840.0,0.00361816]
[1752425374625,2.13824914,118850.0,118840.0,0.00361816]
[1752425375126,2.13924914,118850.0,118840.0,0.00361816]
[1752425375819,1.53522549,118850.0,118840.0,0.00361816]
[1752425376025,2.13967366,118850.0,118840.0,0.17183616]
[1752425376228,1.38434566,118850.0,118840.0,0.17183616]
[1752425376425,0.89585951,118850.0,118840.0,0.56195841]
[1752425376823,0.89585951,118850.0,118840.0,0.27668616]
[1752425377319,0.30885951,118850.0,118840.0,0.56195841]
[1752425377525,0.89585951,118850.0,118840.0,0.56195841]
[1752425378824,0.30885951,118850.0,118840.0,0.56195841]
[1752425379030,0.89581951,118850.0,118840.0,0.92275841]
[1752425379834,0.89581951,118850.0,118840.0,0.56195841]
[1752425380224,0.14065561,118850.0,118840.0,0.56195841]
[1752425380430,0.65353561,118850.0,118840.0,0.92275841]
[1752425380634,0.89573951,118850.0,118840.0,0.92275841]
[1752425381131,0.30885951,118850.0,118840.0,0.92275841]
[1752425381328,0.14065561,118850.0,118840.0,0.92275841]
[1752425382537,0.30885951,118850.0,118840.0,0.92275841]
[1752425382736,0.30785951,118850.0,118840.0,0.92275841]
[1752425383933,0.30685951,118850.0,118840.0,0.92275841]
[1752425384829,0.30685951,118850.0,118840.0,0.48861841]
[1752425385035,0.95293176,118850.0,118840.0,0.20334616]
[1752425385334,0.59213176,118850.0,118840.0,0.00361816]
[1752425385532,0.95293176,118850.0,118840.0,0.00361816]
[1752425388736,0.95293176,118850.0,118840.0,0.17183616]
[1752425388928,0.66765951,118850.0,118840.0,0.17183616]
[1752425389237,1.25421951,118850.0,118840.0,0.17183616]
[1752425390437,1.53949176,118850.0,118840.0,0.17183616]
[1752425392633,0.72810664,118850.0,118840.0,0.27668616]
[1752425392835,0.89309951,118850.0,118840.0,0.92275841]
[1752425393434,0.89309951,118850.0,118840.0,0.20334616]
[1752425393733,1.53917176,118850.0,118840.0,0.17183616]
[1752425394134,0.95293176,118850.0,118840.0,0.17183616]
[1752425394333,1.53893176,118850.0,118840.0,0.17183616]
[1752425395633,1.53893176,118850.0,118840.0,0.17187616]
[1752425398340,1.54093176,118850.0,118840.0,0.17187616]
[1752425398640,1.54193176,118850.0,118840.0,0.17187616]
[1752425401245,1.60237889,118850.0,118840.0,0.00365816]
[1752425401946,1.54193176,118850.0,118840.0,0.00365816]
[1752425404744,1.54193176,118850.0,118840.0,0.17187616]
[1752425404943,1.54193176,118850.0,118840.0,0.00365816]
[1752425405447,1.54117176,118850.0,118840.0,0.00365816]
[1752425405844,1.54117176,118850.0,118840.0,0.17187616]
[1752425406247,1.60161889,118850.0,118840.0,0.17187616]
[1752425406443,1.60161889,118850.0,118840.0,0.00365816]
[1752425406946,1.76990689,118850.0,118840.0,0.00365816]
[1752425407147,1.70945976,118850.0,118840.0,0.00365816]
[1752425408150,1.76988946,118850.0,118840.0,0.00365816]
[1752425409148,1.76988946,118850.0,118830.0,0.0002]
[1752425409149,0.275128,118840.0,118830.0,0.0002]
[1752425409349,0.2751422,118830.0,118820.0,0.2525629]
[1752425409549,1.54008142,118830.0,118820.0,0.2103016]
[1752425409945,1.54008142,118830.0,118820.0,0.1682403]
[1752425410657,0.2013563,118820.0,118810.0,0.2432174]
[1752425410850,0.2013563,118820.0,118810.0,0.2430174]
[1752425410851,0.57783672,118820.0,118810.0,0.2430174]
[1752425411848,0.93863672,118820.0,118810.0,0.2430174]
[1752425412054,0.57783672,118820.0,118810.0,0.2430174]
[1752425412254,0.57869026,118820.0,118810.0,0.2450174]
[1752425413254,0.29341801,118820.0,118810.0,0.2695074]
[1752425413455,0.57869026,118820.0,118810.0,0.3164074]
[1752425414952,0.57869026,118820.0,118810.0,0.3194074]
[1752425415850,0.29341801,118820.0,118810.0,0.3194074]
[1752425417456,0.29341801,118820.0,118810.0,0.6802074]
[1752425418858,0.29341801,118820.0,118810.0,0.3194074]
[1752425419359,0.35385662,118820.0,118810.0,0.3194074]
[1752425420458,0.63912887,118820.0,118810.0,0.3194074]
[1752425420858,0.99992887,118820.0,118810.0,0.2949174]
[1752425421056,0.99992887,118820.0,118810.0,0.2480174]
[1752425421258,0.63912887,118820.0,118810.0,0.2480174]
[1752425421857,0.99992887,118820.0,118810.0,0.2480174]
[1752425422251,0.63912887,118820.0,118810.0,0.2480174]
[1752425422456,0.99992887,118820.0,118810.0,0.2480174]
[1752425423154,0.99992887,118820.0,118810.0,0.2153174]
[1752425423358,0.93949026,118820.0,118810.0,0.2153174]
[1752425424358,0.93949026,118820.0,118810.0,0.005]
[1752425424558,0.93949026,118820.0,118810.0,0.1732604]
[1752425424758,0.93949026,118820.0,118810.0,0.005]
[1752425424957,0.93949026,118820.0,118810.0,0.1732605]
[1752425425160,0.93949026,118820.0,118810.0,0.005]
[1752425426761,0.93949026,118820.0,118810.0,0.1732605]
[1752425427160,0.93949026,118820.0,118810.0,0.005]
[1752425429259,0.99992887,118820.0,118810.0,0.005]
[1752425430262,0.28770213,118810.0,118800.0,0.00385938]
[1752425430461,1.53619609,118810.0,118800.0,0.00365938]
[1752425431267,1.53619609,118810.0,118800.0,0.00665938]
[1752425431463,1.83342726,118810.0,118800.0,0.00665938]
[1752425431660,1.83342726,118810.0,118800.0,0.17493408]
[1752425431855,1.83342726,118810.0,118800.0,0.00665938]
[1752425432365,1.83342726,118810.0,118800.0,0.17493398]
[1752425432565,1.77298865,118810.0,118800.0,0.17493398]
[1752425432866,1.60462087,118810.0,118800.0,0.00665938]
[1752425433255,1.60426087,118810.0,118800.0,0.17493398]
[1752425433666,1.60410087,118810.0,118800.0,0.17493398]
[1752425434269,1.60410087,118810.0,118800.0,0.00965938]
[1752425434568,1.60410087,118810.0,118800.0,0.17793398]
[1752425436071,1.31882862,118810.0,118800.0,0.17793398]
[1752425436272,1.60410087,118810.0,118800.0,0.00965938]
[1752425436472,1.60410087,118810.0,118800.0,0.17793408]
[1752425436958,1.66453948,118810.0,118800.0,0.17793408]
[1752425437162,1.60410087,118810.0,118800.0,0.17793408]
[1752425438970,1.66453948,118810.0,118800.0,0.17793408]
[1752425439170,1.60410087,118810.0,118800.0,0.17793408]
[1752425439674,1.60410087,118810.0,118800.0,0.00965938]
[1752425439975,1.66453948,118810.0,118800.0,0.17793408]
[1752425440273,1.66453948,118810.0,118800.0,0.00965938]
[1752425440474,1.60410087,118810.0,118800.0,0.17793408]
[1752425441072,1.60410087,118810.0,118800.0,0.00965938]
[1752425442975,1.60410087,118810.0,118800.0,0.17793408]
[1752425443375,1.66453948,118810.0,118800.0,0.17793408]
[1752425444081,1.66461948,118810.0,118800.0,0.17793408]
[1752425445275,1.66425948,118810.0,118800.0,0.17793408]
[1752425445871,1.66425948,118810.0,118800.0,0.00965938]
[1752425446172,1.66425948,118810.0,118800.0,0.17793408]
[1752425446373,1.08089948,118810.0,118800.0,0.17793408]
[1752425446569,0.62736673,118810.0,118800.0,0.17793408]
[1752425446773,1.42803042,118810.0,118800.0,0.21091408]
[1752425447171,1.59629102,118810.0,118800.0,0.17793408]
[1752425447373,1.01245102,118810.0,118800.0,0.17793408]
[1752425447578,1.59625102,118810.0,118800.0,0.17793408]
[1752425448080,1.01245102,118810.0,118800.0,0.17793408]
[1752425448268,1.59625102,118810.0,118800.0,0.17793408]
[1752425450570,0.84419042,118810.0,118800.0,0.17793408]
[1752425450774,0.84419042,118810.0,118800.0,0.56634633]
[1752425450775,0.10461956,118810.0,118800.0,0.56634633]
[1752425450972,0.09470817,118810.0,118800.0,0.92714633]
[1752425451171,0.03426956,118810.0,118800.0,0.92714633]
[1752425454777,0.05917956,118810.0,118800.0,0.92714633]
[1752425456374,0.05917956,118810.0,118800.0,0.64187408]
[1752425456580,0.13887956,118810.0,118800.0,0.64187408]
[1752425459879,0.13887956,118810.0,118800.0,0.92714633]
[1752425460176,0.05917956,118810.0,118800.0,0.92714633]
[1752425460372,0.00642666,118810.0,118800.0,2.55204258]
[1752425460578,0.76638741,118830.0,118820.0,0.2725565]
[1752425460778,0.76638741,118830.0,118820.0,0.55782875]
[1752425460779,0.18074741,118830.0,118820.0,0.55782875]
[1752425461478,0.1203088,118830.0,118820.0,0.55782875]
[1752425462173,0.1203088,118830.0,118820.0,0.6343565]
[1752425464482,0.1203088,118830.0,118820.0,0.64219928]
[1752425470088,0.04651,118840.0,118830.0,0.2944003]
[1752425470287,0.10461,118840.0,118830.0,1.04478255]
[1752425470474,0.02491,118840.0,118830.0,1.04478255]
[1752425471284,0.07342,118840.0,118830.0,1.04478255]
[1752425471478,0.10661,118840.0,118830.0,0.7595103]
[1752425472285,0.10661,118840.0,118830.0,0.82715212]
[1752425472483,0.12435923,118840.0,118830.0,0.82715212]
[1752425472984,0.12435923,118840.0,118830.0,0.7595103]
[1752425474780,0.93864988,118840.0,118830.0,0.2725426]
[1752425474982,1.22392213,118840.0,118830.0,0.2002326]
[1752425475185,0.2014226,118830.0,118820.0,0.3568645]
[1752425475383,1.53728995,118830.0,118820.0,0.3566645]
[1752425475582,1.53728995,118830.0,118820.0,0.032]
[1752425475884,0.2728567,118820.0,118810.0,0.218212]
[1752425476080,0.93667818,118820.0,118810.0,0.0497625]
[1752425476280,0.93667818,118820.0,118810.0,0.2180234]
[1752425476782,0.2263609,118810.0,118800.0,0.40263858]
[1752425476987,1.53713962,118810.0,118800.0,0.33767028]
[1752425478083,1.53713962,118810.0,118800.0,0.34067028]
[1752425478784,1.53713962,118810.0,118800.0,0.29106028]
[1752425479185,1.53713962,118810.0,118800.0,0.20692478]
[1752425479388,1.53713962,118810.0,118800.0,0.03865938]
[1752425479787,1.53713962,118810.0,118800.0,0.04165938]
[1752425480599,1.53713962,118810.0,118800.0,0.20993438]
[1752425480794,1.53713962,118810.0,118800.0,0.04165938]
[1752425480986,1.53713962,118810.0,118800.0,0.00965938]
[1752425485495,1.82241187,118810.0,118800.0,0.00965938]
[1752425486397,1.53713962,118810.0,118800.0,0.00965938]
[1752425487496,1.82241187,118810.0,118800.0,0.00965938]
[1752425487691,0.2721351,118800.0,118790.0,0.0002]
[1752425487893,0.05575,118780.0,118760.0,0.06382408]
[1752425488096,1.50184985,118770.0,118760.0,0.0337106]
[1752425488291,1.51791872,118770.0,118760.0,0.0036206]
[1752425488798,1.53599877,118770.0,118760.0,0.0036206]
[1752425489196,1.70439877,118770.0,118760.0,0.0076206]
[1752425489389,1.70439877,118770.0,118740.0,4e-05]
[1752425489390,0.2015259,118750.0,118740.0,4e-05]
[1752425489588,1.53588289,118750.0,118740.0,4e-05]
[1752425489793,1.53588289,118750.0,118740.0,0.03013]
[1752425489994,1.53588289,118750.0,118740.0,0.07676]
[1752425490594,1.53588289,118750.0,118740.0,0.2451201]
[1752425490791,1.25109064,118750.0,118740.0,0.2451201]
[1752425491099,1.53636289,118750.0,118740.0,0.2451201]
[1752425491290,1.53636289,118750.0,118740.0,0.07676]
[1752425491599,1.53636289,118750.0,118740.0,0.2451201]
[1752425492096,1.53636289,118750.0,118740.0,0.07676]
[1752425492287,1.17572289,118750.0,118740.0,0.03013]
[1752425492494,1.53652289,118750.0,118740.0,4e-05]
[1752425492894,1.89740899,118750.0,118720.0,0.00362182]
[1752425493098,0.91830655,118730.0,118720.0,0.00362182]
[1752425493301,0.62620565,118730.0,118690.0,0.41530815]
[1752425493500,0.96045605,118700.0,118690.0,0.03009]
[1752425493797,0.48063451,118700.0,118690.0,0.03009]
[1752425493999,0.72419451,118700.0,118690.0,0.64816614]
[1752425494198,1.00946676,118700.0,118690.0,0.65624112]
[1752425494500,0.72447451,118700.0,118690.0,0.630611]
[1752425495198,0.89289131,118700.0,118690.0,0.269811]
[1752425495394,0.89289131,118700.0,118690.0,0.245151]
[1752425495595,1.2283304,118700.0,118690.0,0.198521]
[1752425496290,1.5891304,118700.0,118690.0,0.198521]
[1752425496797,0.72591451,118700.0,118690.0,0.630611]
[1752425497198,0.11983451,118700.0,118690.0,0.630611]
[1752425497407,0.89425131,118700.0,118690.0,0.630611]
[1752425497599,0.89525131,118700.0,118690.0,0.250151]
[1752425497902,0.89525131,118700.0,118690.0,0.274811]
[1752425498090,0.89865131,118700.0,118690.0,0.274811]
[1752425498297,0.89869131,118700.0,118690.0,0.274811]
[1752425498495,0.73043451,118700.0,118690.0,0.635611]
[1752425498793,0.62553451,118700.0,118690.0,0.96605009]
[1752425498994,0.64910451,118700.0,118690.0,0.96605009]
[1752425499302,1.5980504,118700.0,118690.0,0.07772]
[1752425499495,1.5980504,118700.0,118690.0,0.246151]
[1752425499694,1.2372504,118700.0,118690.0,0.246151]
[1752425500296,0.12383451,118700.0,118690.0,0.270811]
[1752425500502,0.73303451,118700.0,118690.0,0.631611]
[1752425500904,0.12383451,118700.0,118690.0,0.631611]
[1752425501099,0.73307451,118700.0,118690.0,0.631611]
[1752425501302,0.73307451,118700.0,118690.0,0.499391]
[1752425501495,0.90149161,118700.0,118690.0,0.499391]
[1752425501699,0.73307451,118700.0,118690.0,0.499391]
[1752425502400,0.73271451,118700.0,118690.0,0.499391]
[1752425502604,0.90113161,118700.0,118690.0,0.499391]
[1752425503005,1.2365707,118700.0,118690.0,0.456951]
[1752425504002,0.90113161,118700.0,118690.0,0.456951]
[1752425504303,0.90113161,118700.0,118690.0,0.096151]
[1752425504304,1.2365707,118700.0,118690.0,0.096151]
[1752425504807,0.73259451,118700.0,118690.0,0.499391]
[1752425505003,0.90101231,118700.0,118690.0,0.510501]
[1752425505303,0.73259451,118700.0,118690.0,0.510501]
[1752425505507,0.73259451,118700.0,118690.0,0.138591]
[1752425505708,0.73259451,118700.0,118690.0,0.499391]
[1752425505901,0.90101231,118700.0,118690.0,0.499391]
[1752425506507,0.90101231,118700.0,118690.0,0.138591]
[1752425507811,0.90101231,118700.0,118690.0,0.499391]
[1752425508308,0.73259451,118700.0,118690.0,0.499391]
[1752425509298,0.90101231,118700.0,118690.0,0.499391]
[1752425510098,0.90101231,118700.0,118690.0,0.138591]
[1752425510308,0.91851019,118700.0,118690.0,0.138591]
[1752425510706,1.25394928,118700.0,118690.0,0.096151]
[1752425511708,0.91851019,118700.0,118690.0,0.096151]
[1752425512613,0.91851019,118700.0,118690.0,0.113931]
[1752425514016,0.91851019,118700.0,118690.0,0.096151]
[1752425514510,1.25394928,118700.0,118690.0,0.096151]
[1752425515015,1.20480902,118700.0,118690.0,0.096151]
[1752425515515,1.20480902,118700.0,118690.0,0.096191]
[1752425515918,1.56560902,118700.0,118690.0,0.096191]
[1752425516114,1.56560902,118700.0,118690.0,4e-05]
[1752425516323,0.2708626,118690.0,118680.0,0.25648613]
[1752425516523,0.93545931,118690.0,118680.0,0.25628613]
[1752425517322,0.93745931,118690.0,118680.0,0.25728613]
[1752425517521,0.93745931,118690.0,118680.0,0.25828613]
[1752425517922,1.54489931,118690.0,118680.0,0.25828613]
[1752425518622,0.72968788,118690.0,118680.0,0.27612613]
[1752425518819,0.72968788,118690.0,118680.0,0.65996613]
[1752425518820,0.89812048,118690.0,118680.0,0.65996613]
[1752425519011,0.12192788,118690.0,118680.0,0.65996613]
[1752425519211,1.54493931,118690.0,118680.0,0.27616613]
[1752425519413,1.54493931,118690.0,118680.0,0.25832613]
[1752425519615,1.18413931,118690.0,118680.0,0.25832613]
[1752425519822,1.54493931,118690.0,118680.0,0.17410353]
[1752425520014,1.60537792,118690.0,118680.0,0.17410353]
[1752425520619,1.25864048,118690.0,118680.0,0.17410353]
[1752425520821,1.54493931,118690.0,118680.0,0.17410353]
[1752425521924,0.2708759,118680.0,118670.0,0.0002]
[1752425522117,0.95151801,118680.0,118670.0,0.1684601]
[1752425522323,1.55943801,118680.0,118670.0,0.1684601]
[1752425522725,0.95151801,118680.0,118670.0,0.1684601]
[1752425522922,1.19847801,118680.0,118670.0,0.1684601]
[1752425523119,0.59071801,118680.0,118670.0,0.1684601]
[1752425523424,0.1987306,118670.0,118660.0,0.7057133]
[1752425523621,0.34865646,118670.0,118660.0,0.3447133]
[1752425523922,0.34865646,118670.0,118660.0,0.7055133]
[1752425524114,0.34865646,118670.0,118660.0,0.3447133]
[1752425524322,0.28838848,118670.0,118660.0,0.3217133]
[1752425524520,0.57468731,118670.0,118660.0,0.3447133]
[1752425524723,0.57468731,118670.0,118660.0,0.3217133]
[1752425524920,0.57668731,118670.0,118660.0,0.3227133]
[1752425525427,0.65239499,118670.0,118660.0,0.2805955]
[1752425525721,0.65239499,118670.0,118660.0,0.27719402]
[1752425526437,0.9977373,118670.0,118660.0,0.1694606]
[1752425526728,0.9977373,118670.0,118660.0,0.1704606]
[1752425527120,0.71143847,118670.0,118660.0,0.1704606]
[1752425527322,0.6369373,118670.0,118660.0,0.1704606]
[1752425527728,0.9977373,118670.0,118660.0,0.1704606]
[1752425527917,0.35063847,118670.0,118660.0,0.1704606]
[1752425528122,0.65239499,118670.0,118660.0,0.1704606]
[1752425528425,1.01319499,118670.0,118660.0,0.1704606]
[1752425528622,1.01319499,118670.0,118660.0,0.002]
[1752425528925,0.1987449,118660.0,118650.0,0.2529216]
[1752425529122,0.1987449,118660.0,118650.0,0.2527216]
[1752425529123,1.54270161,118660.0,118650.0,0.2527216]
[1752425529326,1.6717567,118660.0,118650.0,0.2527216]
[1752425529527,1.3109567,118660.0,118650.0,0.2527216]
[1752425530121,1.68767144,118660.0,118650.0,0.2125997]
[1752425530530,1.6916877,118660.0,118650.0,0.2135997]
[1752425531127,1.6916877,118660.0,118650.0,0.003]
[1752425531528,1.63144651,118660.0,118650.0,0.003]
[1752425531832,1.34514768,118660.0,118650.0,0.003]
[1752425532030,1.63144651,118660.0,118650.0,0.003]
[1752425532422,1.42038175,118660.0,118650.0,0.003]
[1752425532931,1.70668058,118660.0,118650.0,0.003]
[1752425533128,1.69163283,118660.0,118650.0,0.003]
[1752425533425,0.198759,118650.0,118640.0,0.25657786]
[1752425533630,0.57773197,118650.0,118640.0,0.25637786]
[1752425534133,0.93853197,118650.0,118640.0,0.21425206]
[1752425534622,0.93953197,118650.0,118640.0,0.17312626]
[1752425535031,0.93953197,118650.0,118640.0,0.17512626]
[1752425535433,0.93953197,118650.0,118640.0,0.00662426]
[1752425535632,0.99969126,118650.0,118640.0,0.00662426]
[1752425535829,0.93953197,118650.0,118640.0,0.00662426]
[1752425536736,1.01476604,118650.0,118640.0,0.00662426]
[1752425537035,0.93953197,118650.0,118640.0,0.00662426]
[1752425537237,1.01476604,118650.0,118640.0,0.00662426]
[1752425537432,1.30106487,118650.0,118640.0,0.00662426]
[1752425537739,1.2258308,118650.0,118640.0,0.00662426]
[1752425538028,0.1988153,118610.0,118600.0,0.24940747]
[1752425538239,0.57778827,118610.0,118600.0,0.24940747]
[1752425538431,0.93858827,118610.0,118600.0,0.00866548]
[1752425539235,0.65228944,118610.0,118600.0,0.00866548]
[1752425539631,1.26548944,118610.0,118600.0,0.07722478]
[1752425539826,1.55278827,118610.0,118600.0,0.08322478]
[1752425540136,0.99973472,118610.0,118600.0,0.08322478]
[1752425540338,0.29248944,118610.0,118600.0,0.11491478]
[1752425540634,0.90656944,118610.0,118600.0,0.49871478]
[1752425540829,1.19286827,118610.0,118600.0,0.13791478]
[1752425541030,0.90748944,118610.0,118600.0,0.14191478]
[1752425541939,0.57978827,118610.0,118600.0,0.14191478]
[1752425542236,1.19386827,118610.0,118600.0,0.14191478]
[1752425543231,1.19386827,118610.0,118600.0,0.14195478]
[1752425543736,1.19386827,118610.0,118600.0,0.11895478]
[1752425543932,1.19386827,118610.0,118600.0,0.08726478]
[1752425544235,0.29348944,118610.0,118600.0,0.11876478]
[1752425544436,0.12494414,118610.0,118600.0,0.14175478]
[1752425544633,0.90692954,118610.0,118600.0,0.14175478]
[1752425544833,0.29348954,118610.0,118600.0,0.50255478]
[1752425545029,0.74198414,118610.0,118600.0,0.81249361]
[1752425545431,0.12694414,118610.0,118600.0,0.81249361]
[1752425545637,0.02451414,118610.0,118600.0,1.26741644]
[1752425545837,0.02451414,118610.0,118600.0,0.98111761]
[1752425546233,0.02451414,118610.0,118600.0,1.51741644]
[1752425546441,0.02451414,118610.0,118600.0,1.23111761]
[1752425547033,0.02451414,118610.0,118600.0,1.28067011]
[1752425547236,0.02451414,118610.0,118600.0,1.64547011]
[1752425548040,0.02451414,118610.0,118600.0,1.93977011]
[1752425548241,0.00087414,118610.0,118600.0,2.52562144]
[1752425548445,0.00087414,118610.0,118600.0,2.18977011]
[1752425548643,0.04817414,118610.0,118600.0,2.18977011]
[1752425549746,0.00087414,118610.0,118600.0,2.18977011]
[1752425550041,0.00087414,118610.0,118600.0,1.85391878]
[1752425550244,0.64880037,118640.0,118630.0,0.1685169]
[1752425550445,0.64880037,118640.0,118630.0,0.1915069]
[1752425550647,0.64880037,118640.0,118630.0,0.1685169]
[1752425550946,0.9846517,118640.0,118630.0,0.1685169]
[1752425551146,0.6238517,118640.0,118630.0,0.1685169]
[1752425551549,0.6238517,118640.0,118630.0,0.1705169]
[1752425551850,0.28800037,118640.0,118630.0,0.1705169]
[1752425552051,0.90796037,118640.0,118630.0,0.1725169]
[1752425553461,0.96810682,118640.0,118630.0,0.1725169]
[1752425554257,1.30395815,118640.0,118630.0,0.1725169]
[1752425554654,0.96686682,118640.0,118630.0,0.1955069]
[1752425554859,0.96686682,118640.0,118630.0,0.5563069]
[1752425555059,0.73809717,118640.0,118630.0,0.5563069]
[1752425555261,0.79824362,118640.0,118630.0,0.5563069]
[1752425555852,0.34914642,118640.0,118630.0,0.5563069]
[1752425556258,1.66375775,118640.0,118630.0,0.004]
[1752425556462,1.66375775,118640.0,118630.0,0.1725171]
[1752425557460,1.6036113,118640.0,118630.0,0.1725171]
[1752425557659,1.66378212,118640.0,118630.0,0.1725171]
[1752425557861,1.32793079,118640.0,118630.0,0.1725171]
[1752425558061,1.6036113,118640.0,118630.0,0.1725171]
[1752425558460,1.6036113,118640.0,118630.0,0.12698174]
[1752425558662,1.67884537,118640.0,118630.0,0.12698174]
[1752425559465,1.73904449,118640.0,118630.0,0.12698174]
[1752425559764,1.6036113,118640.0,118630.0,0.12698174]
[1752425559966,1.26775997,118640.0,118630.0,0.12698174]
[1752425560165,1.62287089,118640.0,118630.0,0.12698174]
[1752425561559,0.2245871,118630.0,118620.0,0.2529828]
[1752425561759,1.04803542,118630.0,118620.0,0.2527828]
[1752425561963,1.04803542,118630.0,118620.0,0.210651]
[1752425562867,1.04903542,118630.0,118620.0,0.211651]
[1752425563269,0.71318409,118630.0,118620.0,0.211651]
[1752425563561,0.88151832,118630.0,118610.0,0.2530168]
[1752425563868,1.22587253,118620.0,118610.0,0.2108806]
[1752425564069,0.1685452,118610.0,118600.0,0.29689097]
[1752425564269,0.62702612,118610.0,118600.0,0.29669097]
[1752425564668,0.62702612,118610.0,118600.0,0.25455167]
[1752425564669,0.98782612,118610.0,118600.0,0.25455167]
[1752425564870,0.62702612,118610.0,118600.0,0.25455167]
[1752425565163,0.98782612,118610.0,118600.0,0.25455167]
[1752425565365,0.65197479,118610.0,118600.0,0.25455167]
[1752425565563,0.98882612,118610.0,118600.0,0.21741237]
[1752425566170,0.98982612,118610.0,118600.0,0.22141237]
[1752425566468,0.62902612,118610.0,118600.0,0.22141237]
[1752425566670,0.29317479,118610.0,118600.0,0.22141237]
[1752425567370,0.29317479,118610.0,118600.0,0.22461237]
[1752425567570,0.29317479,118610.0,118600.0,0.24773346]
[1752425568071,0.29317479,118610.0,118600.0,0.22474346]
[1752425568475,0.29317479,118610.0,118600.0,0.22154346]
[1752425568868,0.62902612,118610.0,118600.0,0.17940466]
[1752425569072,0.5799128,118610.0,118600.0,0.17940466]
[1752425570069,0.4113676,118610.0,118600.0,0.17940466]
[1752425570373,0.91205479,118610.0,118600.0,0.56639466]
[1752425570575,0.29317479,118610.0,118600.0,0.56639466]